[Event "44th Chess Olympiad Open 2022"]
[Site "Chennai"]
[Date "2022.07.30"]
[Round "2.59"]
[White "Khan, Taffin"]
[Black "Alfaro, William"]
[Result "0-1"]
[WhiteElo "2019"]
[BlackElo "2155"]
[Annotator "RC"]
[PlyCount "136"]
[EventDate "2022.??.??"]
[TimeControl "60"]

1. e4 {[%emt 0:00:05]} c5 {[%emt 0:00:50]} 2. Nf3 {[%emt 0:00:09]} Nc6 {
[%emt 0:00:08]} 3. Bb5 {[%emt 0:00:12]} g6 {[%emt 0:00:47]} 4. O-O {[%emt 0:00:
00]} Bg7 {[%emt 0:00:05]} 5. Re1 {[%emt 0:00:19]} Nf6 {[%emt 0:00:47]} 6. c3 {
[%emt 0:02:34]} O-O {[%emt 0:00:06]} 7. d4 {[%emt 0:00:17]} d5 {[%emt 0:00:06]}
8. e5 {[%emt 0:03:48]} Ne4 {[%emt 0:00:07]} 9. Nbd2 {[%emt 0:00:19]} Nxd2 {
[%emt 0:01:35]} 10. Bxd2 {[%emt 0:01:06]} Qb6 {[%emt 0:00:27]} 11. Bxc6 {
[%emt 0:01:44]} bxc6 {[%emt 0:00:13]} 12. Qc1 {[%emt 0:00:29]} cxd4 {[%emt 0:
00:00]} 13. cxd4 {[%emt 0:08:31]} Bg4 {[%emt 0:00:06]} 14. Qc5 {[%emt 0:14:26]}
Bxf3 {[%emt 0:06:13]} 15. gxf3 {[%emt 0:01:35]} Qxc5 {[%emt 0:12:43]} 16. dxc5
{[%emt 0:00:12]} a5 {[%emt 0:05:48]} 17. b3 {[%emt 0:03:47]} Rfb8 {[%emt 0:00:
00]} 18. Rac1 {[%emt 0:00:37]} e6 {[%emt 0:00:51]} 19. Rc2 {[%emt 0:01:29]} Rb5
{[%emt 0:00:25]} 20. f4 {[%emt 0:01:21]} Kf8 {[%emt 0:05:52]} 21. Re3 {[%emt 0:
00:00]} Rab8 {[%emt 0:04:12]} 22. a4 {[%emt 0:07:37]} Rxb3 {[%emt 0:00:38]} 23.
Rxb3 {[%emt 0:00:16]} Rxb3 {[%emt 0:00:01]} 24. Bxa5 {[%emt 0:00:01]} Ra3 {
[%emt 0:12:56]} 25. Rb2 {[%emt 0:00:14]} Bh6 {[%emt 0:00:04]} 26. Rb4 {[%emt 0:
00:00]} g5 {[%emt 0:01:40]} 27. fxg5 {[%emt 0:05:25]} Bxg5 {[%emt 0:00:01]} 28.
Kf1 {[%emt 0:15:29]} Be7 {[%emt 0:07:03]} 29. Bb6 {[%emt 0:00:09]} Rc3 {
[%emt 0:00:21]} 30. Ba5 {[%emt 0:04:23]} Rc1+ {[%emt 0:02:25]} 31. Ke2 {
[%emt 0:00:53]} Bxc5 {[%emt 0:00:58]} 32. Rb8+ {[%emt 0:02:00]} Kg7 {[%emt 0:
00:00]} 33. Bd2 {[%emt 0:02:57]} Rc2 {[%emt 0:00:32]} 34. Kd3 {[%emt 0:00:29]}
Ra2 {[%emt 0:00:15]} 35. a5 {[%emt 0:02:03]} Bxf2 {[%emt 0:00:44]} 36. Bg5 {
[%emt 0:00:15]} c5 {[%emt 0:01:45]} 37. Bf6+ {[%emt 0:01:03]} Kh6 {[%emt 0:00:
00]} 38. Rg8 {[%emt 0:00:46]} c4+ {[%emt 0:00:38]} 39. Kc3 {[%emt 0:00:07]}
Be1+ {[%emt 0:05:37]} 40. Kd4 {[%emt 0:00:10]} Bxa5 {[%emt 0:00:19]} 41. Ke3 {
[%emt 0:30:39]} Bb6+ {[%emt 0:31:06]} 42. Kf3 {[%emt 0:00:34]} Rf2+ {[%emt 0:
00:00]} 43. Kg3 {[%emt 0:00:09]} Rxf6 {[%emt 0:01:42]} 44. exf6 {[%emt 0:00:11]
} Bd4 {[%emt 0:00:02]} 45. Rg7 {[%emt 0:00:00]} Bxf6 {[%emt 0:00:00]} 46. Rxf7
{[%emt 0:00:00]} Kg6 {[%emt 0:00:00]} 47. Rd7 {[%emt 0:00:00]} c3 {[%emt 0:00:
00]} 48. Kf3 {[%emt 0:00:00]} Be5 {[%emt 0:00:00]} 49. Ke3 {[%emt 0:00:00]}
Bxh2 {[%emt 0:00:00]} 50. Kd3 {[%emt 0:00:00]} Be5 {[%emt 0:00:00]} 51. Re7 {
[%emt 0:00:00]} h5 {[%emt 0:00:00]} 52. Rxe6+ {[%emt 0:00:00]} Bf6 {[%emt 0:00:
00]} 53. Re2 {[%emt 0:00:00]} h4 {[%emt 0:00:00]} 54. Rg2+ {[%emt 0:00:00]} Kf5
{[%emt 0:00:00]} 55. Rf2+ {[%emt 0:00:00]} Ke6 {[%emt 0:00:00]} 56. Re2+ {
[%emt 0:00:00]} Be5 {[%emt 0:00:00]} 57. Rf2 {[%emt 0:00:00]} h3 {[%emt 0:00:
00]} 58. Rf3 {[%emt 0:00:00]} h2 {[%emt 0:00:00]} 59. Rf1 {[%emt 0:00:00]} Bg3
{[%emt 0:00:00]} 60. Rh1 {[%emt 0:00:00]} Ke5 {[%emt 0:00:00]} 61. Kxc3 {
[%emt 0:00:00]} Ke4 {[%emt 0:00:00]} 62. Kd2 {[%emt 0:00:00]} d4 {[%emt 0:00:
00]} 63. Ke2 {[%emt 0:00:00]} d3+ {[%emt 0:00:00]} 64. Kd2 {[%emt 0:00:00]}
Bf4+ {[%emt 0:00:00]} 65. Kc3 {[%emt 0:00:00]} Ke3 {[%emt 0:00:00]} 66. Re1+ {
[%emt 0:00:00]} Kf2 {[%emt 0:00:00]} 67. Rh1 {[%emt 0:00:00]} Ke2 {[%emt 0:00:
00]} 68. Rb1 {[%emt 0:00:00]} Be3 {[%emt 0:16:33]} 0-1

[Event "44th Chess Olympiad Open 2022"]
[Site "Chennai"]
[Date "2022.07.30"]
[Round "2.59"]
[White "Neto, Roberto"]
[Black "Salazar Cabezas, Alberto Javier"]
[Result "0-1"]
[WhiteElo "1663"]
[BlackElo "2155"]
[Annotator "RC"]
[PlyCount "44"]
[EventDate "2022.??.??"]
[TimeControl "60"]

1. d4 {[%emt 0:00:05]} d5 {[%emt 0:00:17]} 2. c4 {[%emt 0:00:08]} e6 {[%emt 0:
00:00]} 3. Nc3 {[%emt 0:00:11]} Nf6 {[%emt 0:00:07]} 4. Bg5 {[%emt 0:00:24]}
Be7 {[%emt 0:00:08]} 5. Nf3 {[%emt 0:00:22]} O-O {[%emt 0:00:20]} 6. Bxf6 {
[%emt 0:01:46]} Bxf6 {[%emt 0:00:09]} 7. e4 {[%emt 0:00:43]} dxe4 {[%emt 0:00:
00]} 8. Nxe4 {[%emt 0:00:14]} Be7 {[%emt 0:01:50]} 9. Qb3 {[%emt 0:00:44]} a5 {
[%emt 0:02:34]} 10. O-O-O {[%emt 0:03:34]} a4 {[%emt 0:00:49]} 11. Qc2 {
[%emt 0:01:46]} a3 {[%emt 0:00:44]} 12. b3 {[%emt 0:01:20]} Na6 {[%emt 0:02:14]
} 13. h4 {[%emt 0:02:16]} Nb4 {[%emt 0:00:14]} 14. Qd2 {[%emt 0:03:03]} b6 {
[%emt 0:02:48]} 15. Bd3 {[%emt 0:06:50]} c5 {[%emt 0:04:45]} 16. dxc5 {[%emt 0:
00:00]} bxc5 {[%emt 0:03:19]} 17. Bb1 {[%emt 0:15:52]} Qc7 {[%emt 0:02:04]} 18.
Qe3 {[%emt 0:07:48]} f5 {[%emt 0:01:58]} 19. Neg5 {[%emt 0:04:50]} Bf6 {
[%emt 0:01:13]} 20. Rd2 {[%emt 0:07:07]} e5 {[%emt 0:03:03]} 21. Kd1 {[%emt 0:
00:00]} Ra6 {[%emt 0:04:48]} 22. Ke2 {[%emt 0:03:56]} e4 {[%emt 0:01:38]} 0-1

[Event "44th Chess Olympiad Open 2022"]
[Site "Chennai"]
[Date "2022.07.30"]
[Round "2.60"]
[White "Thing, Bibek"]
[Black "Muhammed, Shuaau"]
[Result "1-0"]
[WhiteElo "2260"]
[BlackElo "1987"]
[Annotator "RC"]
[PlyCount "91"]
[EventDate "2022.??.??"]
[TimeControl "60"]

1. e4 {[%emt 0:00:36]} e5 {[%emt 0:00:07]} 2. Nf3 {[%emt 0:00:12]} Nc6 {
[%emt 0:00:02]} 3. Bc4 {[%emt 0:00:58]} Nf6 {[%emt 0:00:09]} 4. d3 {[%emt 0:00:
00]} Be7 {[%emt 0:00:09]} 5. O-O {[%emt 0:00:34]} O-O {[%emt 0:00:04]} 6. a4 {
[%emt 0:00:04]} d5 {[%emt 0:00:16]} 7. exd5 {[%emt 0:00:09]} Nxd5 {[%emt 0:00:
00]} 8. Re1 {[%emt 0:00:20]} Nb6 {[%emt 0:08:22]} 9. Bb5 {[%emt 0:01:33]} f6 {
[%emt 0:02:52]} 10. a5 {[%emt 0:01:24]} Nd5 {[%emt 0:11:25]} 11. a6 {[%emt 0:
00:00]} Kh8 {[%emt 0:16:06]} 12. d4 {[%emt 0:03:36]} exd4 {[%emt 0:06:18]} 13.
Nxd4 {[%emt 0:10:32]} Nxd4 {[%emt 0:04:19]} 14. Qxd4 {[%emt 0:01:33]} bxa6 {
[%emt 0:12:28]} 15. Bd3 {[%emt 0:09:58]} Bb7 {[%emt 0:04:11]} 16. Bd2 {[%emt 0:
00:00]} f5 {[%emt 0:03:32]} 17. Qc4 {[%emt 0:18:56]} c5 {[%emt 0:07:52]} 18.
Ba5 {[%emt 0:07:13]} Qd6 {[%emt 0:02:03]} 19. Nc3 {[%emt 0:02:59]} Bf6 {
[%emt 0:02:27]} 20. Bf1 {[%emt 0:08:24]} Bd4 {[%emt 0:05:39]} 21. Nxd5 {
[%emt 0:10:16]} Bxd5 {[%emt 0:01:11]} 22. Qe2 {[%emt 0:00:20]} f4 {[%emt 0:00:
00]} 23. Qxa6 {[%emt 0:11:42]} Qxa6 {[%emt 0:02:59]} 24. Bxa6 {[%emt 0:00:02]}
Bxb2 {[%emt 0:01:05]} 25. Rad1 {[%emt 0:00:05]} Bg8 {[%emt 0:01:09]} 26. Re7 {
[%emt 0:01:36]} Rfe8 {[%emt 0:02:28]} 27. Rc7 {[%emt 0:01:51]} Re5 {[%emt 0:00:
00]} 28. h3 {[%emt 0:01:10]} c4 {[%emt 0:00:38]} 29. Bb4 {[%emt 0:00:48]} Re2 {
[%emt 0:00:28]} 30. c3 {[%emt 0:00:42]} h6 {[%emt 0:00:47]} 31. Rdd7 {[%emt 0:
00:00]} f3 {[%emt 0:01:07]} 32. gxf3 {[%emt 0:00:27]} Re6 {[%emt 0:00:22]} 33.
Bb7 {[%emt 0:01:09]} Rg6+ {[%emt 0:00:05]} 34. Kf1 {[%emt 0:00:37]} Re8 {
[%emt 0:00:57]} 35. Be4 {[%emt 0:00:07]} Rg5 {[%emt 0:00:29]} 36. h4 {[%emt 0:
00:00]} Rge5 {[%emt 0:00:40]} 37. Rxg7 {[%emt 0:00:49]} a5 {[%emt 0:00:03]} 38.
Rg6 {[%emt 0:01:43]} R5e6 {[%emt 0:00:36]} 39. Rxe6 {[%emt 0:00:26]} Rxe6 {
[%emt 0:00:13]} 40. Bxa5 {[%emt 0:00:07]} Ra6 {[%emt 0:00:48]} 41. Bb4 {
[%emt 0:30:44]} Ra1+ {[%emt 0:30:02]} 42. Ke2 {[%emt 0:00:56]} Rh1 {[%emt 0:00:
00]} 43. Rb7 {[%emt 0:00:00]} Ba1 {[%emt 0:00:00]} 44. Kd2 {[%emt 0:00:00]} Bb2
{[%emt 0:00:00]} 45. Bc5 {[%emt 0:00:00]} Bc1+ {[%emt 0:00:00]} 46. Kc2 {
[%emt 0:00:00]} 1-0

[Event "44th Chess Olympiad Open 2022"]
[Site "Chennai"]
[Date "2022.07.30"]
[Round "2.60"]
[White "Bhandari, Kshitiz"]
[Black "Fuad, Ahmed Mufleh"]
[Result "1-0"]
[WhiteElo "2071"]
[BlackElo "2086"]
[Annotator "NA RC"]
[PlyCount "58"]
[EventDate "2022.??.??"]
[TimeControl "60"]

1. Nf3 {[%emt 0:00:06]} d5 {[%emt 0:00:20]} 2. b3 {[%emt 0:00:13]} Bg4 {
[%emt 0:03:08]} 3. Bb2 {[%emt 0:00:45]} Bxf3 {[%emt 0:00:28]} 4. exf3 {[%emt 0:
00:00]} Nd7 {[%emt 0:00:30]} 5. f4 {[%emt 0:00:21]} Ngf6 {[%emt 0:00:30]} 6. g3
{[%emt 0:00:06]} e6 {[%emt 0:00:30]} 7. Bg2 {[%emt 0:00:06]} Bd6 {[%emt 0:00:
00]} 8. O-O {[%emt 0:02:00]} O-O {[%emt 0:03:28]} 9. Re1 {[%emt 0:01:02]} c6 {
[%emt 0:01:40]} 10. d4 {[%emt 0:00:38]} Qc7 {[%emt 0:02:27]} 11. Nd2 {[%emt 0:
00:00]} Bxf4 {[%emt 0:05:23]} 12. gxf4 {[%emt 0:00:06]} Qxf4 {[%emt 0:00:08]}
13. Nf1 {[%emt 0:01:05]} Ne4 {[%emt 0:07:19]} 14. f3 {[%emt 0:00:36]} Ng5 {
[%emt 0:01:40]} 15. Bc1 {[%emt 0:02:23]} Qh4 {[%emt 0:01:00]} 16. Bxg5 {
[%emt 0:00:53]} Qxg5 {[%emt 0:00:12]} 17. Qc1 {[%emt 0:00:11]} Qh4 {[%emt 0:00:
00]} 18. f4 {[%emt 0:00:30]} g5 {[%emt 0:13:58]} 19. fxg5 {[%emt 0:08:50]}
Qxd4+ {[%emt 0:00:26]} 20. Qe3 {[%emt 0:00:04]} Qg7 {[%emt 0:01:01]} 21. Ng3 {
[%emt 0:00:28]} d4 {[%emt 0:04:53]} 22. Qd2 {[%emt 0:03:39]} Rae8 {[%emt 0:00:
00]} 23. Rad1 {[%emt 0:00:30]} e5 {[%emt 0:01:04]} 24. Bh3 {[%emt 0:00:06]} Re7
{[%emt 0:07:52]} 25. Bxd7 {[%emt 0:00:12]} Rxd7 {[%emt 0:00:13]} 26. Nh5 {
[%emt 0:00:04]} Re8 {[%emt 0:06:18]} 27. Nxg7 {[%emt 0:00:09]} Kxg7 {[%emt 0:
00:00]} 28. Qf2 {[%emt 0:00:01]} Re6 {[%emt 0:00:26]} 29. Rxe5 {[%emt 0:00:02]}
Kf8 {[%emt 0:00:36]} 1-0

[Event "44th Chess Olympiad Open 2022"]
[Site "Chennai"]
[Date "2022.07.30"]
[Round "2.60"]
[White "Ashraf, Ahmed Ramadan"]
[Black "Lama, Milan"]
[Result "0-1"]
[WhiteElo "1916"]
[BlackElo "2024"]
[Annotator "NA"]
[PlyCount "83"]
[EventDate "2022.??.??"]
[TimeControl "60"]

1. e4 {[%emt 0:00:03]} c5 {[%emt 0:00:06]} 2. Nf3 {[%emt 0:00:11]} g6 {[%emt 0:
00:00]} 3. c3 {[%emt 0:04:26]} Bg7 {[%emt 0:00:07]} 4. d4 {[%emt 0:00:02]} cxd4
{[%emt 0:00:08]} 5. cxd4 {[%emt 0:00:03]} d5 {[%emt 0:00:26]} 6. e5 {[%emt 0:
00:00]} Nc6 {[%emt 0:01:48]} 7. Nc3 {[%emt 0:00:20]} Bg4 {[%emt 0:03:00]} 8.
Be2 {[%emt 0:06:24]} Bxf3 {[%emt 0:04:57]} 9. Bxf3 {[%emt 0:06:57]} e6 {
[%emt 0:00:16]} 10. O-O {[%emt 0:00:03]} Nh6 {[%emt 0:00:56]} 11. Bxh6 {
[%emt 0:05:18]} Bxh6 {[%emt 0:00:19]} 12. Na4 {[%emt 0:00:30]} O-O {[%emt 0:00:
00]} 13. a3 {[%emt 0:00:55]} Qh4 {[%emt 0:03:22]} 14. Bg4 {[%emt 0:02:30]} Rac8
{[%emt 0:07:35]} 15. g3 {[%emt 0:03:55]} Qe7 {[%emt 0:00:33]} 16. b4 {[%emt 0:
00:00]} b6 {[%emt 0:11:42]} 17. f4 {[%emt 0:03:44]} f5 {[%emt 0:06:16]} 18.
exf6 {[%emt 0:10:08]} Qxf6 {[%emt 0:00:58]} 19. Re1 {[%emt 0:00:24]} Nxd4 {
[%emt 0:07:27]} 20. Re5 {[%emt 0:05:58]} Nf5 {[%emt 0:05:34]} 21. Qe1 {[%emt 0:
00:00]} Rfe8 {[%emt 0:02:35]} 22. Nc3 {[%emt 0:00:51]} Qf7 {[%emt 0:01:35]} 23.
Nb5 {[%emt 0:09:02]} Qd7 {[%emt 0:03:18]} 24. Bxf5 {[%emt 0:13:59]} gxf5 {
[%emt 0:00:40]} 25. Nd4 {[%emt 0:04:03]} Bg7 {[%emt 0:01:27]} 26. b5 {[%emt 0:
00:00]} Bxe5 {[%emt 0:06:44]} 27. Qxe5 {[%emt 0:00:27]} Qc7 {[%emt 0:01:43]}
28. Qf6 {[%emt 0:00:51]} Qg7 {[%emt 0:01:08]} 29. Qxg7+ {[%emt 0:00:21]} Kxg7 {
[%emt 0:00:05]} 30. Nc6 {[%emt 0:00:09]} a6 {[%emt 0:01:57]} 31. a4 {[%emt 0:
00:00]} axb5 {[%emt 0:00:15]} 32. axb5 {[%emt 0:00:01]} Ra8 {[%emt 0:00:07]}
33. Ra6 {[%emt 0:01:43]} Rxa6 {[%emt 0:01:46]} 34. bxa6 {[%emt 0:00:50]} Ra8 {
[%emt 0:00:05]} 35. Nb4 {[%emt 0:01:32]} Kf7 {[%emt 0:01:11]} 36. Kf2 {[%emt 0:
00:00]} Ke7 {[%emt 0:00:25]} 37. Ke3 {[%emt 0:00:05]} Kd6 {[%emt 0:00:05]} 38.
Kd4 {[%emt 0:01:06]} Rc8 {[%emt 0:00:49]} 39. Ke3 {[%emt 0:06:20]} Rc4 {
[%emt 0:02:39]} 40. a7 {[%emt 0:00:44]} Rc8 {[%emt 0:00:11]} 41. h3 {[%emt 0:
00:00]} Ra8 {[%emt 0:30:20]} 42. Kd4 {[%emt 0:07:50]} 0-1

[Event "44th Chess Olympiad Open 2022"]
[Site "Chennai"]
[Date "2022.07.30"]
[Round "2.60"]
[White "Mujahid Bin Yazeed"]
[Black "Jaiswal, Rupesh"]
[Result "0-1"]
[WhiteElo "1418"]
[BlackElo "2083"]
[Annotator "NA RC"]
[PlyCount "52"]
[EventDate "2022.??.??"]
[TimeControl "60"]

1. f4 {[%emt 0:00:04]} c5 {[%emt 0:00:17]} 2. Nf3 {[%emt 0:00:08]} d6 {[%emt 0:
00:00]} 3. g3 {[%emt 0:00:42]} g6 {[%emt 0:00:18]} 4. Bg2 {[%emt 0:00:13]} Bg7
{[%emt 0:00:07]} 5. O-O {[%emt 0:00:19]} Nc6 {[%emt 0:00:20]} 6. c3 {[%emt 0:
00:00]} Qb6 {[%emt 0:04:52]} 7. Kh1 {[%emt 0:01:33]} Nf6 {[%emt 0:06:27]} 8. d4
{[%emt 0:01:41]} cxd4 {[%emt 0:04:29]} 9. cxd4 {[%emt 0:05:20]} Bg4 {[%emt 0:
00:00]} 10. e3 {[%emt 0:01:28]} O-O {[%emt 0:00:55]} 11. Nc3 {[%emt 0:03:14]}
Rac8 {[%emt 0:03:24]} 12. Na4 {[%emt 0:04:00]} Qa6 {[%emt 0:01:25]} 13. Nc3 {
[%emt 0:06:53]} Rfe8 {[%emt 0:08:35]} 14. h3 {[%emt 0:07:06]} Bxf3 {[%emt 0:00:
00]} 15. Qxf3 {[%emt 0:02:32]} e5 {[%emt 0:09:12]} 16. fxe5 {[%emt 0:05:23]}
dxe5 {[%emt 0:01:01]} 17. d5 {[%emt 0:02:57]} e4 {[%emt 0:01:54]} 18. Qf4 {
[%emt 0:03:47]} Nb4 {[%emt 0:00:19]} 19. Kg1 {[%emt 0:11:07]} Qc4 {[%emt 0:00:
00]} 20. Rd1 {[%emt 0:09:27]} Nbxd5 {[%emt 0:03:38]} 21. Nxd5 {[%emt 0:01:52]}
Nxd5 {[%emt 0:00:07]} 22. Qf2 {[%emt 0:01:14]} Nb4 {[%emt 0:01:31]} 23. Bf1 {
[%emt 0:00:49]} Qe6 {[%emt 0:01:19]} 24. a3 {[%emt 0:01:02]} Rc2 {[%emt 0:00:
00]} 25. axb4 {[%emt 0:02:24]} Rxf2 {[%emt 0:00:18]} 26. Kxf2 {[%emt 0:00:06]}
Qf5+ {[%emt 0:00:19]} 0-1

[Event "44th Chess Olympiad Open 2022"]
[Site "Chennai"]
[Date "2022.07.30"]
[Round "2.61"]
[White "Volpinari, Danilo"]
[Black "Christie, Joshua"]
[Result "0-1"]
[WhiteElo "1955"]
[BlackElo "2272"]
[Annotator "ChessBase"]
[PlyCount "74"]
[EventDate "2022.??.??"]
[TimeControl "60"]

1. d4 {[%emt 0:00:07]} Nf6 {[%emt 0:00:14]} 2. Bf4 {[%emt 0:00:30]} e6 {
[%emt 0:00:19]} 3. e3 {[%emt 0:02:24]} c5 {[%emt 0:00:35]} 4. c3 {[%emt 0:00:
00]} d5 {[%emt 0:00:53]} 5. Nd2 {[%emt 0:01:51]} Bd6 {[%emt 0:00:59]} 6. Bg3 {
[%emt 0:01:09]} O-O {[%emt 0:00:31]} 7. Ngf3 {[%emt 0:02:23]} b6 {[%emt 0:00:
00]} 8. Bd3 {[%emt 0:04:02]} Bb7 {[%emt 0:01:26]} 9. Ne5 {[%emt 0:11:34]} Nc6 {
[%emt 0:00:57]} 10. f4 {[%emt 0:03:48]} Ne7 {[%emt 0:05:36]} 11. O-O {[%emt 0:
00:00]} Ne4 {[%emt 0:03:16]} 12. Bh4 {[%emt 0:05:40]} f6 {[%emt 0:03:28]} 13.
Nef3 {[%emt 0:02:35]} c4 {[%emt 0:05:02]} 14. Bc2 {[%emt 0:05:20]} b5 {[%emt 0:
00:00]} 15. a3 {[%emt 0:03:55]} Qd7 {[%emt 0:00:55]} 16. Qe2 {[%emt 0:00:55]}
Nf5 {[%emt 0:02:20]} 17. g4 {[%emt 0:03:49]} Nxh4 {[%emt 0:02:21]} 18. Nxh4 {
[%emt 0:00:02]} a5 {[%emt 0:04:51]} 19. Nhf3 {[%emt 0:15:54]} e5 {[%emt 0:00:
00]} 20. f5 {[%emt 0:03:28]} Nxd2 {[%emt 0:03:04]} 21. Qxd2 {[%emt 0:00:30]}
Qe7 {[%emt 0:01:00]} 22. Rae1 {[%emt 0:03:06]} Rae8 {[%emt 0:07:10]} 23. Nh4 {
[%emt 0:04:09]} exd4 {[%emt 0:03:30]} 24. exd4 {[%emt 0:02:21]} Qf7 {[%emt 0:
00:00]} 25. Ng2 {[%emt 0:04:57]} Qc7 {[%emt 0:02:10]} 26. Nh4 {[%emt 0:02:43]}
Qd7 {[%emt 0:02:54]} 27. Qf2 {[%emt 0:01:13]} Rxe1 {[%emt 0:00:51]} 28. Rxe1 {
[%emt 0:00:34]} Re8 {[%emt 0:00:08]} 29. Ng2 {[%emt 0:04:36]} b4 {[%emt 0:00:
00]} 30. axb4 {[%emt 0:00:24]} axb4 {[%emt 0:00:03]} 31. Ra1 {[%emt 0:01:39]}
Qc7 {[%emt 0:01:25]} 32. h3 {[%emt 0:01:10]} Bc6 {[%emt 0:11:14]} 33. Bd1 {
[%emt 0:00:35]} Bg3 {[%emt 0:00:58]} 34. Qd2 {[%emt 0:01:37]} Bh2+ {[%emt 0:00:
00]} 35. Kf1 {[%emt 0:01:42]} Qg3 {[%emt 0:01:44]} 36. h4 {[%emt 0:00:57]} Qh3
{[%emt 0:00:48]} 37. Qf2 {[%emt 0:01:29]} Bg3 {[%emt 0:00:16]} 0-1

[Event "44th Chess Olympiad Open 2022"]
[Site "Chennai"]
[Date "2022.07.30"]
[Round "2.61"]
[White "Shaw, Jaden"]
[Black "Righi, Ezio"]
[Result "1-0"]
[WhiteElo "1930"]
[BlackElo "1912"]
[Annotator "NA RC"]
[PlyCount "53"]
[EventDate "2022.??.??"]
[TimeControl "60"]

1. e4 {[%emt 0:00:02]} c5 {[%emt 0:00:09]} 2. Nf3 {[%emt 0:00:06]} e6 {[%emt 0:
00:00]} 3. c3 {[%emt 0:00:42]} Nf6 {[%emt 0:00:29]} 4. e5 {[%emt 0:00:57]} Nd5
{[%emt 0:00:19]} 5. d4 {[%emt 0:00:49]} cxd4 {[%emt 0:00:20]} 6. cxd4 {[%emt 0:
00:00]} d6 {[%emt 0:00:21]} 7. Bd3 {[%emt 0:01:02]} Nc6 {[%emt 0:00:47]} 8. O-O
{[%emt 0:00:49]} Qc7 {[%emt 0:01:13]} 9. Re1 {[%emt 0:02:16]} Bd7 {[%emt 0:00:
00]} 10. Bg5 {[%emt 0:02:15]} h6 {[%emt 0:01:37]} 11. Bh4 {[%emt 0:01:08]} dxe5
{[%emt 0:09:36]} 12. Nxe5 {[%emt 0:02:10]} Nxe5 {[%emt 0:00:43]} 13. dxe5 {
[%emt 0:01:00]} Bb4 {[%emt 0:05:45]} 14. Nd2 {[%emt 0:05:57]} Rc8 {[%emt 0:00:
00]} 15. a3 {[%emt 0:01:49]} Bxd2 {[%emt 0:02:22]} 16. Qxd2 {[%emt 0:00:46]}
O-O {[%emt 0:00:55]} 17. Re4 {[%emt 0:02:13]} f5 {[%emt 0:16:22]} 18. exf6 {
[%emt 0:02:09]} Nxf6 {[%emt 0:00:07]} 19. Rc4 {[%emt 0:01:27]} Bc6 {[%emt 0:00:
00]} 20. Re1 {[%emt 0:04:09]} Qf7 {[%emt 0:06:26]} 21. Bb1 {[%emt 0:09:03]} Bd5
{[%emt 0:02:01]} 22. Rd4 {[%emt 0:02:38]} Rc6 {[%emt 0:09:56]} 23. Qd3 {
[%emt 0:02:54]} Qc7 {[%emt 0:01:38]} 24. Bxf6 {[%emt 0:02:47]} Rxf6 {[%emt 0:
00:00]} 25. Qh7+ {[%emt 0:00:12]} Kf8 {[%emt 0:03:03]} 26. Rxd5 {[%emt 0:02:26]
} Rc1 {[%emt 0:01:05]} 27. Rdd1 {[%emt 0:00:42]} 1-0

[Event "44th Chess Olympiad Open 2022"]
[Site "Chennai"]
[Date "2022.07.30"]
[Round "2.61"]
[White "Herrera, Adrian"]
[Black "Lorne, Ras Malaku"]
[Result "0-1"]
[WhiteElo "1563"]
[BlackElo "2079"]
[Annotator "NA"]
[PlyCount "90"]
[EventDate "2022.??.??"]
[TimeControl "60"]

1. c4 {[%emt 0:00:04]} c5 {[%emt 0:00:35]} 2. Nc3 {[%emt 0:00:18]} Nc6 {
[%emt 0:00:22]} 3. g3 {[%emt 0:00:36]} g6 {[%emt 0:00:17]} 4. Bg2 {[%emt 0:00:
00]} Bg7 {[%emt 0:00:10]} 5. e3 {[%emt 0:01:23]} e5 {[%emt 0:00:41]} 6. Nge2 {
[%emt 0:05:13]} Nge7 {[%emt 0:01:00]} 7. a3 {[%emt 0:02:22]} a5 {[%emt 0:08:37]
} 8. d3 {[%emt 0:04:16]} d6 {[%emt 0:02:50]} 9. Nd5 {[%emt 0:03:32]} Nxd5 {
[%emt 0:12:09]} 10. Bxd5 {[%emt 0:02:27]} O-O {[%emt 0:10:58]} 11. Bg2 {
[%emt 0:07:28]} Be6 {[%emt 0:21:22]} 12. Nc3 {[%emt 0:12:30]} Rb8 {[%emt 0:00:
00]} 13. O-O {[%emt 0:00:54]} f5 {[%emt 0:06:32]} 14. Nd5 {[%emt 0:11:33]} Ne7
{[%emt 0:03:16]} 15. Bd2 {[%emt 0:02:19]} Nxd5 {[%emt 0:02:13]} 16. cxd5 {
[%emt 0:01:47]} Bd7 {[%emt 0:00:38]} 17. a4 {[%emt 0:01:09]} b5 {[%emt 0:02:58]
} 18. axb5 {[%emt 0:03:34]} Rxb5 {[%emt 0:00:47]} 19. Bc3 {[%emt 0:01:22]} Qc7
{[%emt 0:00:54]} 20. Qd2 {[%emt 0:02:04]} Ra8 {[%emt 0:00:19]} 21. Rfc1 {
[%emt 0:02:49]} a4 {[%emt 0:02:00]} 22. d4 {[%emt 0:01:42]} cxd4 {[%emt 0:00:
00]} 23. Bxd4 {[%emt 0:00:39]} Qb7 {[%emt 0:00:31]} 24. Bc3 {[%emt 0:00:45]}
Be8 {[%emt 0:04:06]} 25. Bf1 {[%emt 0:01:33]} Rb6 {[%emt 0:00:26]} 26. Bc4 {
[%emt 0:03:56]} Rc8 {[%emt 0:00:55]} 27. Be2 {[%emt 0:05:55]} Rc5 {[%emt 0:00:
00]} 28. Rd1 {[%emt 0:01:04]} e4 {[%emt 0:02:22]} 29. Bxg7 {[%emt 0:02:27]}
Qxg7 {[%emt 0:00:15]} 30. Rdb1 {[%emt 0:01:36]} Qe5 {[%emt 0:02:17]} 31. Bd1 {
[%emt 0:01:27]} Rxd5 {[%emt 0:00:42]} 32. Qe2 {[%emt 0:00:46]} Bb5 {[%emt 0:00:
00]} 33. Qe1 {[%emt 0:00:42]} Ra6 {[%emt 0:05:16]} 34. b3 {[%emt 0:02:23]} Bd3
{[%emt 0:00:58]} 35. Rc1 {[%emt 0:01:04]} Rc5 {[%emt 0:02:22]} 36. bxa4 {
[%emt 0:00:52]} Qb2 {[%emt 0:01:15]} 37. g4 {[%emt 0:02:25]} Kg7 {[%emt 0:00:
00]} 38. Rxc5 {[%emt 0:01:11]} dxc5 {[%emt 0:00:22]} 39. Be2 {[%emt 0:00:18]}
Qxe2 {[%emt 0:00:39]} 40. Qc3+ {[%emt 0:01:25]} Kh6 {[%emt 0:00:25]} 41. h3 {
[%emt 0:31:39]} Qf3 {[%emt 0:30:52]} 42. Qe5 {[%emt 0:01:54]} fxg4 {[%emt 0:00:
00]} 43. h4 {[%emt 0:00:00]} Qf6 {[%emt 0:00:00]} 44. Qe8 {[%emt 0:00:00]}
Qxa1+ {[%emt 0:00:00]} 45. Kh2 {[%emt 0:00:00]} Rf6 {[%emt 0:00:00]} 0-1

[Event "44th Chess Olympiad Open 2022"]
[Site "Chennai"]
[Date "2022.07.30"]
[Round "2.62"]
[White "Gong Thon Gong"]
[Black "Gontcharov, Serguei"]
[Result "1-0"]
[WhiteElo "2176"]
[BlackElo "1864"]
[Annotator "RC"]
[PlyCount "45"]
[EventDate "2022.??.??"]
[TimeControl "60"]

1. d4 {[%emt 0:00:07]} Nf6 {[%emt 0:00:17]} 2. Nf3 {[%emt 0:00:15]} d5 {
[%emt 0:01:01]} 3. g3 {[%emt 0:00:03]} c5 {[%emt 0:01:46]} 4. Bg2 {[%emt 0:00:
00]} Nc6 {[%emt 0:00:14]} 5. O-O {[%emt 0:00:12]} e6 {[%emt 0:00:38]} 6. a3 {
[%emt 0:00:07]} h6 {[%emt 0:01:55]} 7. dxc5 {[%emt 0:01:11]} Bxc5 {[%emt 0:00:
00]} 8. b4 {[%emt 0:00:11]} Bd6 {[%emt 0:01:00]} 9. Nbd2 {[%emt 0:00:11]} O-O {
[%emt 0:03:26]} 10. Bb2 {[%emt 0:00:26]} Re8 {[%emt 0:00:38]} 11. c4 {[%emt 0:
00:00]} Be7 {[%emt 0:09:04]} 12. Qc2 {[%emt 0:00:28]} Bd7 {[%emt 0:06:57]} 13.
Rfd1 {[%emt 0:00:37]} Rc8 {[%emt 0:00:54]} 14. Rac1 {[%emt 0:01:28]} a5 {
[%emt 0:01:07]} 15. b5 {[%emt 0:00:08]} Nb8 {[%emt 0:00:19]} 16. Qb3 {[%emt 0:
00:00]} Qb6 {[%emt 0:03:44]} 17. Ne5 {[%emt 0:00:39]} dxc4 {[%emt 0:05:37]} 18.
Nxd7 {[%emt 0:00:23]} Nbxd7 {[%emt 0:00:36]} 19. Nxc4 {[%emt 0:00:18]} Rxc4 {
[%emt 0:17:36]} 20. Qxc4 {[%emt 0:00:14]} Bc5 {[%emt 0:05:12]} 21. e3 {[%emt 0:
00:00]} h5 {[%emt 0:13:53]} 22. Bxf6 {[%emt 0:00:40]} gxf6 {[%emt 0:00:09]} 23.
Rxd7 {[%emt 0:00:41]} 1-0